Workbook

Sheet RozpNav_DR
C1: 00248266 Město Humpolec
A3: V návaznosti na usnesení Zastupitelstva města Humpolce ze dne 01. 03. 2023 č. 54/3/ZM/2023 - Schválený rozpočet města Humpolce na rok 2023, Rada města Humpolce schvaluje:
A4: Rozpis schváleného rozpočtu na rok 2023
F7: Číslo usnesení : | G7: xxx/9/RM/2023
F9: Schváleno dne : | G9: 2023-03-15
A11: Obsah rozpisu rozpočtu:
A12: závazný ukazatel= | H12: "Z"
A13: Příjmy
A14: ODPA | B14: POL | C14: ORJ | D14: ORG | E14: NZUZ | F14: Popis | G14: Schválený rozpis rozpočtu (Kč)
B15: 1111 | F15: Příjem z daně z příjmů fyzických osob placené plátci (závislá činnost) | G15: 36100000
B16: 1112 | F16: Příjem z daně z příjmů fyzických osob placené poplatníky (OSVČ) | G16: 2200000
B17: 1113 | F17: Příjem z daně z příjmů fyzických osob vybír.srážkou podle zvláštní sazby daně (kapit.výnosy) | G17: 7100000
B18: 1121 | F18: Příjem z daně z příjmů právnických osob | G18: 48750000
B19: 1122 | F19: Příjem z daně z příjmů právnických osob za obce | G19: 15000000
B20: 1211 | F20: Příjem z daně z přidané hodnoty | G20: 117000000
B21: 1335 | F21: Příjem z poplatku za odnětí pozemku podle lesního zákona | G21: 5000
B22: 1341 | F22: Příjem z poplatku ze psů | G22: 250000
B23: 1343 | F23: Příjem z poplatku za užívání veřejného prostranství | G23: 150000
B24: 1345 | F24: Příjem z poplatku za obecní systém odpadového hospodářství | G24: 7500000
B25: 1353 | F25: Příjem za zkoušky z odborné způsobilosti od žadatelů o řidičské oprávnění | G25: 250000
B26: 1361 | F26: Příjem ze správních poplatků | G26: 4700000
B27: 1381 | F27: Příjem z daně z hazardních her s výjimkou dílčí daně z technických her | G27: 1500000
B28: 1385 | F28: Příjem z dílčí daně z technických her | G28: 19000000
B29: 1511 | F29: Příjem z daně z nemovitých věcí | G29: 9900000
A30: Celkem za třídu Daňové příjmy | G30: 269405000
A31: z toho sdílené daně POL 1111+1112+1113+1121+1211 | G31: =G15+G16+G17+G18+G20 -> 211150000
A33: ODPA | B33: POL | C33: ORJ | D33: ORG | E33: NZUZ | F33: Popis | G33: Schválený rozpis rozpočtu (Kč)
A34: 1039 | B34: 2111 | F34: Příjem z poskytování služeb a výrobků-lesní hospodářství-prodej dřeva | G34: 2000
A35: 2310 | B35: 2111 | F35: Příjem z poskytování služeb a výrobků-vodní hospodářství-vodné,stočné | G35: 55000000
A36: 3612 | B36: 2111 | C36: 0010 | F36: BHS-Příjem z poskytování služeb a výrobků-zálohy na služby | G36: 7900000
A37: 3613 | B37: 2111 | F37: Příjem z poskytování služeb a výrobků-nebytové hospodářství (ČS, a.s.záloha na vodné) | G37: 10000
A38: 3725 | B38: 2111 | D38: 0372500010 | F38: Příjem z poskytování služeb-sběr a svoz kom.odpadů-odměna za vytříděné složky odpadu | G38: 3000000
A39: 3900 | B39: 2111 | F39: Příjem z poskytování služeb-ost.činnosti pro obyvatelstvo-poplatky za WC | G39: 20000
A40: 6171 | B40: 2111 | F40: Příjem z poskytování služeb a výrobků -činnost místní správy | G40: 10000
A41: 6171 | B41: 2112 | F41: Příjem z prodeje zboží (již nakoupeného za účelem prodeje)-prodej knih a publikací | G41: 2000
A42: 6171 | B42: 2119 | F42: Ostatní příjmy z vlastní činnosti-činnost místní správy-věcná břemena | G42: 120000
A43: 3111 | B43: 2122 | F43: Příjem z odvodů příspěvkových organizací - FIPO-MŠ | G43: 509000 | H43: Z
A44: 3113 | B44: 2122 | D44: 0000000321 | F44: Příjem z odvodů příspěvkových organizací - FIPO-ZŠ Hálkova | G44: 1040000
A45: 3113 | B45: 2122 | D45: 0000000322 | F45: Příjem z odvodů příspěvkových organizací - FIPO-ZŠ Hradská | G45: 801000
A46: 3231 | B46: 2122 | F46: Příjem z odvodů příspěvkových organizací - FIPO-ZUŠ | G46: 82000
A47: 3233 | B47: 2122 | F47: Příjem z odvodů příspěvkových organizací - FIPO-SVČ | G47: 282000
A48: 3319 | B48: 2122 | F48: Příjem z odvodů příspěvkových organizací - FIPO-MěKIS | G48: 714000
A49: 1039 | B49: 2131 | F49: Příjem z pronájmu nebo pachtu pozemků-ost.záležitosti lesního hospodářství | G49: 7260000
A50: 3639 | B50: 2131 | F50: Příjem z pronájmu nebo pachtu pozemků-komun.služby-ostatní | G50: 782000
A51: 2310 | B51: 2132 | F51: Příjem z pronájmu ostatních nemovitých věcí a jejich částí-vodní hospodářství | G51: 121
A52: 3612 | B52: 2132 | C52: 0010 | F52: BHS-Příjem z pronájmu ostatních nemovitých věcí a jejich částí-nájemné byty | G52: 14700000
A53: 3613 | B53: 2132 | F53: Příjem z pronájmu ostatních nemov.věcí a jejich částí-nebyt. hosp.-nájemné nebyt.prostor | G53: 6400000
A54: 3639 | B54: 2132 | F54: Příjem z pronájmu ostatních nemovitých věcí a jejich částí-komun.služby-ostatní pronájmy | G54: 6000
A55: 6221 | B55: 2132 | F55: Příjem z pronájmu ostatních nemovitých věcí a jejich částí-humanitární zahr.pomoc přímá | G55: 50000
A56: 3639 | B56: 2133 | F56: Příjem z pronájmu nebo pachtu movitých věcí-komunální služby | G56: 175000
A57: 3632 | B57: 2139 | F57: Ostatní příjmy z pronájmu nebo pachtu majetku-pohřebnictví-hrobová místa | G57: 200000
A58: 3639 | B58: 2139 | F58: Ostatní příjmy z pronájmu nebo pachtu majetku-komun.služby-movité věci-na reklamní účely | G58: 100000
A59: 6310 | B59: 2141 | F59: Příjem z úroků-bankovní účty | G59: 5000000
A60: 6310 | B60: 2141 | F60: Příjem z úroků-bankovní účty-sociální fond | G60: 10000
A61: 2299 | B61: 2143 | F61: Kurzové rozdíly v příjmech-ostatní záležitosti v dopravě | G61: 2000
A62: 2169 | B62: 2212 | F62: Příjem sankčních plateb přijatých od jiných subjektů-pokuty Stav.úřad | G62: 10000
A63: 2212 | B63: 2212 | F63: Příjem sankčních plateb přijatých od jiných subjektů | G63: 126000
A64: 2299 | B64: 2212 | F64: Příjem sankčních plateb přijatých od jiných subjektů-doprava | G64: 400000
A65: 3612 | B65: 2212 | C65: 0010 | F65: BHS-Příjem sankčních plateb přijatých od jiných subjektů-úroky z prodlení | G65: 20000
A66: 3769 | B66: 2212 | F66: Příjem sankčních plateb přijatých od jiných subjektů-životní prostředí | G66: 50000
A67: 5311 | B67: 2212 | F67: Příjem sankčních plateb přijatých od jiných subjektů-veřejný pořádek-přestupky | G67: 70000
A68: 3111 | B68: 2229 | F68: Ostatní přijaté vratky transferů-neinvestičního příspěvku na energie-MŠ | G68: 16912
A69: 3113 | B69: 2229 | D69: 0000000321 | F69: Ostatní přijaté vratky transferů-neinvestičního příspěvku na energie-ZŠ Hálkova | G69: 348000
A70: 3113 | B70: 2229 | D70: 0000000322 | F70: Ostatní přijaté vratky transferů-investičního příspěvku-ZŠ Hradská | G70: 180997.55
A71: 3319 | B71: 2229 | F71: Ostatní přijaté vratky transferů-neinvestičního příspěvku na energie-MěKIS | G71: 235000
A72: 6402 | B72: 2229 | D72: 0323300001 | F72: Přijatá vratka-SVČ-neinv.průtok.dotace Míčkování anebo zatočíme s rýmou a kašlem | G72: 5843
A73: 6402 | B73: 2229 | F73: Finanční vypořádání-vratky veřejnopr.dotací r.2022 | G73: 476434
A74: 6171 | B74: 2310 | F74: Příjem z prodeje krátkodobého a drobného dlouh. neinv.majetku-činnost místní správy | G74: 1000
A75: 6171 | B75: 2322 | F75: Příjem z pojistných náhrad-činnost místní správy | G75: 100000
A76: 2169 | B76: 2324 | F76: Přijaté neinvestiční příspěvky a náhrady-náklady řízení-Stav.úřad | G76: 2000
A77: 2299 | B77: 2324 | F77: Přijaté neinvestiční příspěvky a náhrady-ost.záležitosti v dopravě-náklady řízení | G77: 10000
A78: 3632 | B78: 2324 | F78: Přijaté neinvestiční příspěvky a náhrady-pohřebnictví-náhrady za cizí zesnulé | G78: 50000
A79: 5311 | B79: 2324 | F79: Přijaté neinvestiční příspěvky a náhrady-veřejný pořádek-náklady řízení | G79: 5000
A80: 6171 | B80: 2324 | F80: Přijaté neinvestiční příspěvky a náhrady-činnost místní správy | G80: 5000
A81: 6171 | B81: 2329 | F81: Ostatní nedaňové příjmy-činnost místní správy-územní plán, úroky z prodlení, pohř., | G81: 10000
B82: 2412 | D82: 0363900041 | F82: Splátky půjč. prostředků-TS-bezúročná zápůjčka | G82: 15000000
B83: 2460 | F83: Splátky půjčených prostředků od fyzických osob do SF | G83: 10000
A84: Celkem za třídu Nedaňové příjmy | G84: 121309307.5
A86: ODPA | B86: POL | C86: ORJ | D86: ORG | E86: NZUZ | F86: Popis | G86: Schválený rozpis rozpočtu (Kč)
A87: 3639 | B87: 3111 | F87: Komunální služby a úz.rozvoj-příjem z prodeje pozemků | G87: 300000
A88: Celkem za třídu Kapitálové příjmy | G88: 300000
A90: ODPA | B90: POL | C90: ORJ | D90: ORG | E90: NZUZ | F90: Popis | G90: Schválený rozpis rozpočtu (Kč)
B91: 4111 | D91: 0000098008 | E91: 98008 | F91: Neinv.přijaté transfery z VPS SR-Volba prezidenta ČR | G91: 594000
B92: 4112 | F92: Neinvestiční přijaté transfery ze SR v rámci souhrnného dotačního vztahu | G92: 22497900
A93: Neinvestiční přijaté transfery celkem | G93: =SUM(G91:G92) -> 23091900
B94: 4222 | D94: 0617100027 | F94: Investiční přij.transfer od kraje-Napojení LPR kamer PČR na opt. síť a trasování-směr Želiv | G94: 209206
A95: Investiční přijaté transfery celkem | G95: =SUM(G94) -> 209206
A96: Celkem za třídu Přijaté transfery | G96: 23301106
A98: Celkem Příjmy | G98: 414315413.6
A101: Výdaje
A102: ODPA | B102: POL | C102: ORJ | D102: ORG | E102: NZUZ | F102: Popis | G102: Schválený rozpis rozpočtu (Kč)
A103: 1014 | B103: 5137 | D103: 0101400001 | F103: Péče o opuštěná zvířata | G103: 10000
A104: 1014 | B104: 5169 | D104: 0101400001 | F104: Péče o opuštěná zvířata | G104: 400000
A105: 1014 | B105: 5169 | D105: 0101400002 | F105: Deratizace | G105: 198000
A106: 1014 | B106: 5169 | D106: 0101400003 | F106: Kastrace koček | G106: 20000
A107: 1014 | B107: 5492 | D107: 0101400003 | F107: Kastrace koček | G107: 50000
A108: 1039 | B108: 5169 | D108: 0103900001 | F108: Lesní hosp.-odborný lesní hospodář | G108: 270000
A109: 1039 | B109: 5169 | D109: 0103900004 | F109: Ostatní lesnické práce | G109: 20000
A110: 1039 | B110: 5171 | D110: 0103900005 | F110: Opravy lesních cest | G110: 600000
A111: 1039 | B111: 5179 | D111: 0103900006 | F111: Sdružení vlastníků obecních a soukromých lesů ČR-členský příspěvek | G111: 12000
A112: Celkem za oddíl 10 - Zemědělství a lesní hospodářství | G112: =SUM(G103:G111) -> 1580000 | H112: Z
A113: 2141 | B113: 5137 | D113: 0214100003 | F113: Farmářské trhy-DDHM | G113: 15000
A114: 2141 | B114: 5139 | D114: 0214100001 | F114: Farmářské trhy-materiál | G114: 20000
A115: 2141 | B115: 5169 | D115: 0214100002 | F115: Farmářské trhy-služby | G115: 140000
A116: Celkem za oddíl 21 - Průmysl, stavebnictví, obchod, služby | G116: =SUM(G113:G115) -> 175000 | H116: Z
A117: 2212 | B117: 5166 | D117: 0221200001 | F117: Studie komunikací | G117: 500000
A118: 2212 | B118: 5166 | D118: 0221200157 | F118: Dopravní model města | G118: 300000
A119: 2212 | B119: 5166 | D119: 0221200158 | F119: Křižovatka Billa-studie | G119: 400000
A120: 2212 | B120: 5169 | D120: 0221200002 | F120: Čištění komunikací | G120: 3100000
A121: 2212 | B121: 5169 | D121: 0221200003 | F121: Čištění komunikací-vybrané akce | G121: 120000
A122: 2212 | B122: 5169 | D122: 0221200004 | F122: Čištění komunikací-psí exkrementy | G122: 700000
A123: 2212 | B123: 5169 | D123: 0221200005 | F123: Zimní údržba komunikací | G123: 2800000
A124: 2212 | B124: 5171 | D124: 0221200006 | F124: Dopravní značení-zrcadla | G124: 90000
A125: 2212 | B125: 5171 | D125: 0221200008 | F125: Údržba kanalizačních vpustí | G125: 400000
A126: 2212 | B126: 5171 | D126: 0221200009 | F126: Opravy komunikací-město | G126: 2000000
A127: 2212 | B127: 5171 | D127: 0221200010 | F127: Opravy komunikací-místní části | G127: 2000000
A128: 2212 | B128: 5171 | D128: 0221200021 | F128: Dopravní značení-město | G128: 300000
A129: 2212 | B129: 5171 | D129: 0221200022 | F129: Údržba přechodů | G129: 300000
A130: 2212 | B130: 5171 | D130: 0221200062 | F130: Dopravní značení-místní části | G130: 130000
A131: 2212 | B131: 5171 | D131: 0221200072 | F131: Opravy komunikací-metoda infra | G131: 700000
A132: 2212 | B132: 5171 | D132: 0221200140 | F132: Označení ulic-nové cedule | G132: 180000
A133: 2212 | B133: 5171 | D133: 0221200149 | F133: Radary měření rychlosti-opravy | G133: 100000
A134: 2219 | B134: 5166 | D134: 0221900001 | F134: Studie a projekty chodníků | G134: 250000
A135: 2219 | B135: 5169 | D135: 0221900007 | F135: Zimní údržba chodníků | G135: 1200000
A136: 2219 | B136: 5169 | D136: 0221900074 | F136: Mlžící rám město-zařízení pro osvěž.vzduchu-instalace | G136: 5000
A137: 2219 | B137: 5171 | D137: 0221900002 | F137: Opravy chodníků | G137: 450000
A138: 2221 | B138: 5171 | D138: 0222100001 | F138: Opravy autobusových čekáren | G138: 100000
A139: 2229 | B139: 5169 | D139: 0222900001 | F139: Likvidace autovraků | G139: 20000
A140: 2292 | B140: 5213 | D140: 0229200002 | F140: Dopravní obslužnost | G140: 80000
A141: Celkem za oddíl 22 - Doprava | G141: =SUM(G117:G140) -> 16225000 | H141: Z
A142: 2310 | B142: 5151 | D142: 0231000001 | F142: Voda-nákup pitné vody | G142: 8000000
A143: 2310 | B143: 5164 | D143: 0231000001 | F143: Voda-nákup pitné vody | G143: 4000
A144: 2310 | B144: 5166 | D144: 0231000002 | F144: Voda-nové studie | G144: 100000
A145: 2310 | B145: 5169 | D145: 0231000010 | F145: Vodovod-provozovatelská smlouva | G145: 14200000
A146: 2310 | B146: 5169 | D146: 0231000057 | F146: Oprava vodovodu ul.5.května (PD) | G146: 160000
A147: 2310 | B147: 5169 | D147: 0231000058 | F147: Oprava vodovodu ul.Hradská (PD) | G147: 130000
A148: 2310 | B148: 5169 | D148: 0231000059 | F148: Oprava vodovodu ul. Vosmíkova (PD) | G148: 120000
A149: 2310 | B149: 5171 | D149: 0231000011 | F149: Vodovod-běžné opravy | G149: 2000000
A150: 2321 | B150: 5166 | D150: 0232100001 | F150: Kanalizace-studie | G150: 250000
A151: 2321 | B151: 5166 | D151: 0232100042 | F151: Čištění Světlice-Plačkov (studie proveditelnosti) | G151: 500000
A152: 2321 | B152: 5169 | D152: 0232100004 | F152: Provoz ČOV v LTRN | G152: 300000
A153: 2321 | B153: 5169 | D153: 0232100007 | F153: Kanalizace-provozovatelská smlouva | G153: 17100000
A154: 2321 | B154: 5169 | D154: 0232100049 | F154: Oprava kanalizace ul.5.května (PD) | G154: 120000
A155: 2321 | B155: 5169 | D155: 0232100050 | F155: Oprava kanalizace ul.Hradská (PD) | G155: 200000
A156: 2321 | B156: 5169 | D156: 0232100051 | F156: Oprava kanalizace ul. Vosmíkova (PD) | G156: 160000
A157: 2321 | B157: 5171 | D157: 0232100008 | F157: Kanalizace-běžné opravy | G157: 2000000
A158: 2341 | B158: 5169 | D158: 0234100001 | F158: Oprava návesních rybníků Petrovice | G158: 200000
A159: 2341 | B159: 5171 | D159: 0234100001 | F159: Oprava návesních rybníků Petrovice | G159: 6500000
A160: Celkem za oddíl 23 - Vodní hospodářství | G160: =SUM(G142:G159) -> 52044000 | H160: Z
A161: 3111 | B161: 5331 | D161: 0000000301 | F161: Neinvestiční příspěvek MŠ (provoz) | G161: 6090000 | H161: Z
A162: 3111 | B162: 5331 | D162: 0311100301 | F162: Neinv. příspěvek MŠ spec.pedagog | G162: 100000 | H162: Z
A163: 3111 | B163: 5901 | D163: 0311100005 | F163: Provoz a drobné vybavení pracoviště a zahrady MŠ Podhrad | G163: 2000000
A164: 3113 | B164: 5166 | D164: 0311300004 | F164: Rozšíření kapacit základních škol v Humpolci | G164: 800000
A165: 3113 | B165: 5331 | D165: 0000000321 | F165: Neinvestiční příspěvek ZŠ Hálkova (provoz) | G165: 10587000 | H165: Z
A166: 3113 | B166: 5331 | D166: 0000000322 | F166: Neinvestiční příspěvek ZŠ Hradská (provoz) | G166: 7992000 | H166: Z
A167: 3113 | B167: 5331 | D167: 0311300001 | F167: Neinv. příspěvek ZŠ spec. pedagog, školní psycholog | G167: 400000 | H167: Z
A168: 3113 | B168: 5331 | D168: 0999000321 | F168: Neinv. příspěvek ZŠ Hálkova-participativní rozpočet | G168: 100000 | H168: Z
A169: 3113 | B169: 5331 | D169: 0999000322 | F169: Neinv. příspěvek ZŠ Hradská-participativní rozpočet | G169: 100000 | H169: Z
A170: 3119 | B170: 5169 | D170: 0311900001 | F170: Projekt Post Bellum | G170: 150000
A171: 3121 | B171: 5339 | D171: 0999312101 | F171: Dar particip.rozpočet-Gymnázium Dr.A.Hrdličky | G171: 100000
A172: 31 - Vzdělávání | G172: =SUM(G161:G171) -> 28419000 | H172: Z
A173: 3231 | B173: 5331 | D173: 0000000324 | F173: Neinvestiční příspěvek ZUŠ (provoz) | G173: 880000 | H173: Z
A174: 3233 | B174: 5331 | D174: 0000000325 | F174: Neinvestiční příspěvek SVČ (provoz) | G174: 3866000 | H174: Z
A175: 3299 | B175: 5222 | D175: 0329900001 | F175: Dotace B2-Vzdělávání pro budoucnost (činnost) | G175: 18000 | H175: Z
A176: 32 - Vzdělávání | G176: =SUM(G173:G175) -> 4764000 | H176: Z
A177: 3312 | B177: 5222 | D177: 0331200001 | F177: Dotace B2-Spol.pro rozvoj kulturních tradic Vysočiny (hudební slavnosti) | G177: 100000 | H177: Z
A178: 3313 | B178: 5221 | D178: 0331300001 | F178: Dotace B2-Castrum (filmový a folkový festival) | G178: 58000 | H178: Z
A179: 3319 | B179: 5151 | D179: 0331900020 | F179: Spolkový dům čp.59-studená voda | G179: 400000
A180: 3319 | B180: 5153 | D180: 0331900020 | F180: Spolkový dům čp.59-plyn | G180: 500000
A181: 3319 | B181: 5154 | D181: 0331900020 | F181: Spolkový dům čp.59-el.energie | G181: 1000000
A182: 3319 | B182: 5166 | D182: 0331900024 | F182: Studie využití městského bloku "SPOLKOVÝ DŮM-HUSOVA" | G182: 1000000
A183: 3319 | B183: 5169 | D183: 0331900012 | F183: Varhanní koncerty Concentus Moraviae-festival Varhanní Vysočina | G183: 50000
A184: 3319 | B184: 5169 | D184: 0331900016 | F184: Administrace dotace PKC-Centrum Mikádo | G184: 10000
A185: 3319 | B185: 5169 | D185: 0331900020 | F185: Spolkový dům čp.59-nákup ost.služeb | G185: 100000
A186: 3319 | B186: 5169 | D186: 0331900021 | F186: TS-odměna správa-Spolk.dům čp.59 | G186: 320000
A187: 3319 | B187: 5171 | D187: 0331900020 | F187: Spolkový dům čp.59-opravy a udržování | G187: 1000000
A188: 3319 | B188: 5331 | D188: 0000000376 | F188: Neinvestiční příspěvek MěKIS (provoz) | G188: 17099000 | H188: Z
A189: 3319 | B189: 5339 | D189: 0312100001 | F189: Dotace B3-Gymnázium Dr.A.Hrdličky (projekty školy,spolupráce se ZUŠ a ZŠ) | G189: 54000 | H189: Z
A190: 3319 | B190: 5339 | D190: 0312200001 | F190: Dotace B2-Česká zemědělská akademie (akce školy) | G190: 17000 | H190: Z
A191: 3319 | B191: 5493 | D191: 0331900001 | F191: Dotace B2-Zabloudilová (pořádání sletu čarodějnic) | G191: 15000 | H191: Z
A192: 3319 | B192: 5493 | D192: 0331900022 | F192: Dotace B2-Háva Samuel (podpora amat.loutk.souboru Zlá sazenice) | G192: 15000 | H192: Z
A193: 3319 | B193: 5493 | D193: 0331900023 | F193: Dotace B3-Šarfová Blanka (vydání a tisk knihy beletrie s historickou tematikou) | G193: 10000 | H193: Z
A194: 3319 | B194: 5901 | D194: 0000000020 | F194: Rezerva na Dotace B "Zásad"-obl. kultury | G194: 118000 | H194: Z
A195: 3322 | B195: 5154 | D195: 0332200010 | F195: Budova čp.338 Zichpil | G195: 30000
A196: 3322 | B196: 5166 | D196: 0332200001 | F196: Státní památková péče-posudky | G196: 20000
A197: 3322 | B197: 5169 | D197: 0332200002 | F197: Hrad Orlík-provozní výdaje | G197: 200000
A198: 3322 | B198: 5169 | D198: 0332200003 | F198: Budova čp.253 Dol. náměstí-údržba, revize | G198: 30000
A199: 3322 | B199: 5169 | D199: 0332200010 | F199: Budova čp.338 Zichpil - revize, služby | G199: 3000
A200: 3322 | B200: 5171 | D200: 0332200002 | F200: Hrad Orlík-provozní výdaje | G200: 500000
A201: 3322 | B201: 5171 | D201: 0332200003 | F201: Budova čp.253 Dolní nám.-opravy | G201: 100000
A202: 3322 | B202: 5171 | D202: 0332200006 | F202: St.pam.péče-opr.neudržitelných památek | G202: 10000
A203: 3322 | B203: 5171 | D203: 0332200009 | F203: Budova čp.250 Dolní náměstí | G203: 30000
A204: 3322 | B204: 5171 | D204: 0332200010 | F204: Budova čp.338 Zichpil-opravy | G204: 170000
A205: 3326 | B205: 5154 | D205: 0332600004 | F205: Toleranční kostel-el.energie | G205: 8000
A206: 3326 | B206: 5169 | D206: 0332600001 | F206: Kapličky-revize | G206: 25000
A207: 3326 | B207: 5171 | D207: 0332600002 | F207: Boží muka, křížky-opravy | G207: 10000
A208: 3326 | B208: 5171 | D208: 0332600003 | F208: Kapličky-opravy | G208: 160000
A209: 3326 | B209: 5171 | D209: 0332600005 | F209: Zvonička Hněvkovice-oprava | G209: 5000
A210: 3326 | B210: 5901 | D210: 0332600022 | F210: Rezerva-Dotace na opravu fasád historických objektů | G210: 1000000
A211: 3330 | B211: 5223 | D211: 0333000003 | F211: Dotace D2-Českobratrská církev evangel. (oprava v areálu evang.kostela) | G211: 275000 | H211: Z
... 544 more rows

Sheet List1
